[Event "Late-Titled-Tuesday-Blitz-September-19-2023"]
[Site "Chess.com"]
[Date "2023.09.19"]
[Round "11"]
[White "Bala-Afiada"]
[Black "Mariia89"]
[Result "0-1"]
[WhiteElo "1960"]
[BlackElo "2059"]
[TimeControl "180+1"]
[EndTime "16:05:17 PDT"]
[Termination "Mariia89 won by resignation"]

1. d4 {[%clk 0:02:58.7]} 1... Nf6 {[%clk 0:02:59.3]} 2. c4 {[%clk 0:02:57.6]}
2... c5 {[%clk 0:02:58.9]} 3. d5 {[%clk 0:02:57.7]} 3... b5 {[%clk 0:02:58.7]}
4. cxb5 {[%clk 0:02:58.6]} 4... a6 {[%clk 0:02:59.1]} 5. b6 {[%clk 0:02:59.3]}
5... d6 {[%clk 0:02:58.2]} 6. Nc3 {[%clk 0:02:57.4]} 6... Qxb6 {[%clk
0:02:56.1]} 7. Nf3 {[%clk 0:02:57.2]} 7... g6 {[%clk 0:02:53.4]} 8. e4 {[%clk
0:02:57.4]} 8... Bg7 {[%clk 0:02:53.6]} 9. Nd2 {[%clk 0:02:56.5]} 9... O-O
{[%clk 0:02:48.8]} 10. Nc4 {[%clk 0:02:56.7]} 10... Qa7 {[%clk 0:02:48]} 11. Bd3
{[%clk 0:02:41.4]} 11... Nbd7 {[%clk 0:02:39.6]} 12. O-O {[%clk 0:02:34.9]}
12... Nb6 {[%clk 0:02:39.6]} 13. Bg5 {[%clk 0:02:28.9]} 13... Nxc4 {[%clk
0:02:29.2]} 14. Bxc4 {[%clk 0:02:28.7]} 14... Bd7 {[%clk 0:02:23.4]} 15. Qd2
{[%clk 0:02:21.5]} 15... Rfb8 {[%clk 0:02:22.5]} 16. Rab1 {[%clk 0:02:05]} 16...
Rb4 {[%clk 0:02:20.5]} 17. b3 {[%clk 0:02:02.7]} 17... Rab8 {[%clk 0:02:17.6]}
18. Bh6 {[%clk 0:02:00.7]} 18... Bh8 {[%clk 0:02:17]} 19. f4 {[%clk 0:01:45.7]}
19... Ng4 {[%clk 0:02:09.1]} 20. f5 {[%clk 0:01:22.7]} 20... Bd4+ {[%clk
0:02:07.8]} 21. Kh1 {[%clk 0:01:22.4]} 21... Nxh6 {[%clk 0:02:01.9]} 22. Qxh6
{[%clk 0:01:21.9]} 22... Bxc3 {[%clk 0:02:01.4]} 23. fxg6 {[%clk 0:01:21.8]}
23... hxg6 {[%clk 0:02:01]} 24. Rf3 {[%clk 0:01:04]} 24... Bg7 {[%clk
0:01:59.7]} 25. Qf4 {[%clk 0:01:01.4]} 25... Bf6 {[%clk 0:01:23.4]} 26. Rbf1
{[%clk 0:00:52.5]} 26... Kg7 {[%clk 0:01:15.4]} 27. e5 {[%clk 0:00:47.1]} 27...
dxe5 {[%clk 0:01:13.6]} 28. Qg3 {[%clk 0:00:41.6]} 28... Rh8 {[%clk 0:01:09.1]}
29. d6 {[%clk 0:00:30.2]} 29... e4 {[%clk 0:00:40.3]} 30. Rf4 {[%clk 0:00:18.2]}
30... Qb8 {[%clk 0:00:29]} 31. dxe7 {[%clk 0:00:07.1]} 31... Rb6 {[%clk
0:00:28.6]} 32. Rxf6 {[%clk 0:00:05.3]} 32... Rxf6 {[%clk 0:00:24.1]} 33. Qxb8
{[%clk 0:00:04]} 33... Rxb8 {[%clk 0:00:22.8]} 34. Rxf6 {[%clk 0:00:04.5]} 34...
Kxf6 {[%clk 0:00:22.4]} 35. Bxa6 {[%clk 0:00:04.3]} 35... Kxe7 {[%clk
0:00:21.9]} 0-1

[Event "Late-Titled-Tuesday-Blitz-September-19-2023"]
[Site "Chess.com"]
[Date "2023.09.19"]
[Round "11"]
[White "Mesa_1"]
[Black "IlanSchnaider"]
[Result "1-0"]
[WhiteElo "2618"]
[BlackElo "2737"]
[TimeControl "180+1"]
[EndTime "16:05:20 PDT"]
[Termination "Mesa_1 won by checkmate"]

1. e4 {[%clk 0:02:55]} 1... c5 {[%clk 0:02:59.2]} 2. Nf3 {[%clk 0:02:54.8]} 2...
d6 {[%clk 0:02:59.7]} 3. Nc3 {[%clk 0:02:54.6]} 3... Nf6 {[%clk 0:03:00.1]} 4.
d4 {[%clk 0:02:55.2]} 4... cxd4 {[%clk 0:03:01]} 5. Nxd4 {[%clk 0:02:55.7]} 5...
a6 {[%clk 0:03:01.7]} 6. Bg5 {[%clk 0:02:48]} 6... e5 {[%clk 0:03:02.1]} 7. Nf5
{[%clk 0:02:47.4]} 7... Bxf5 {[%clk 0:02:59.5]} 8. exf5 {[%clk 0:02:48.3]} 8...
Be7 {[%clk 0:02:58.9]} 9. Bc4 {[%clk 0:02:47.1]} 9... Qc8 {[%clk 0:02:58]} 10.
Qd3 {[%clk 0:02:39.2]} 10... Nbd7 {[%clk 0:02:55.7]} 11. a4 {[%clk 0:02:28.1]}
11... Nc5 {[%clk 0:02:54.5]} 12. Qf3 {[%clk 0:02:25.1]} 12... e4 {[%clk
0:02:52.1]} 13. Qh3 {[%clk 0:02:20.1]} 13... Ncd7 {[%clk 0:02:42.6]} 14. Bb3
{[%clk 0:02:13.6]} 14... Nc5 {[%clk 0:02:32]} 15. Bc4 {[%clk 0:02:10]} 15... h6
{[%clk 0:02:23.4]} 16. Bh4 {[%clk 0:01:56.4]} 16... O-O {[%clk 0:02:09.4]} 17.
O-O {[%clk 0:01:55.5]} 17... Rb8 {[%clk 0:01:44]} 18. Rfe1 {[%clk 0:01:42.9]}
18... Re8 {[%clk 0:01:32.8]} 19. a5 {[%clk 0:01:25.8]} 19... b5 {[%clk
0:01:25.2]} 20. axb6 {[%clk 0:01:26.7]} 20... Rxb6 {[%clk 0:01:25.4]} 21. b3
{[%clk 0:01:27.3]} 21... Rb8 {[%clk 0:01:21.2]} 22. Rad1 {[%clk 0:01:24.5]}
22... Qc6 {[%clk 0:01:15.2]} 23. Nd5 {[%clk 0:01:11.7]} 23... Nxd5 {[%clk
0:01:09]} 24. Bxd5 {[%clk 0:01:12.6]} 24... Qc7 {[%clk 0:01:06.1]} 25. f6 {[%clk
0:01:09.8]} 25... Bxf6 {[%clk 0:00:51.8]} 26. Bxf6 {[%clk 0:01:07.9]} 26... gxf6
{[%clk 0:00:52.7]} 27. Qxh6 {[%clk 0:01:02.1]} 27... Re5 {[%clk 0:00:38.8]} 28.
Re3 {[%clk 0:00:52.2]} 28... Qd7 {[%clk 0:00:08]} 29. Rh3 {[%clk 0:00:39.4]}
29... Qxh3 {[%clk 0:00:07]} 30. Qxh3 {[%clk 0:00:40.3]} 30... Kg7 {[%clk
0:00:05.9]} 31. Qg3+ {[%clk 0:00:33.5]} 31... Kf8 {[%clk 0:00:06.1]} 32. Qf4
{[%clk 0:00:31.9]} 32... Ke7 {[%clk 0:00:06]} 33. Bc4 {[%clk 0:00:29.8]} 33...
a5 {[%clk 0:00:04.2]} 34. g3 {[%clk 0:00:26.4]} 34... a4 {[%clk 0:00:03.3]} 35.
bxa4 {[%clk 0:00:27]} 35... Nxa4 {[%clk 0:00:03.9]} 36. Rxd6 {[%clk 0:00:24.6]}
36... Rc8 {[%clk 0:00:01.9]} 37. Qxf6+ {[%clk 0:00:21.7]} 37... Ke8 {[%clk
0:00:02]} 38. Qxf7# {[%clk 0:00:19.3]} 1-0

[Event "Late-Titled-Tuesday-Blitz-September-19-2023"]
[Site "Chess.com"]
[Date "2023.09.19"]
[Round "11"]
[White "jinxy2009"]
[Black "FrancescoSorcinelli"]
[Result "0-1"]
[WhiteElo "2306"]
[BlackElo "2200"]
[TimeControl "180+1"]
[EndTime "16:05:20 PDT"]
[Termination "FrancescoSorcinelli won by resignation"]

1. e4 {[%clk 0:03:00.9]} 1... g6 {[%clk 0:02:59]} 2. d4 {[%clk 0:02:57.6]} 2...
Bg7 {[%clk 0:02:59.3]} 3. Nc3 {[%clk 0:02:56.6]} 3... d6 {[%clk 0:02:59.7]} 4.
f4 {[%clk 0:02:55.9]} 4... a6 {[%clk 0:02:59.6]} 5. Nf3 {[%clk 0:02:55.8]} 5...
b5 {[%clk 0:02:59.7]} 6. Bd3 {[%clk 0:02:56.2]} 6... Bb7 {[%clk 0:03:00.2]} 7.
O-O {[%clk 0:02:52.5]} 7... Nd7 {[%clk 0:02:59.9]} 8. a4 {[%clk 0:02:52.4]} 8...
b4 {[%clk 0:02:59.4]} 9. Ne2 {[%clk 0:02:53]} 9... c5 {[%clk 0:02:55.7]} 10. c3
{[%clk 0:02:53.5]} 10... Ngf6 {[%clk 0:02:52.9]} 11. Ng3 {[%clk 0:02:44.6]}
11... bxc3 {[%clk 0:02:45.2]} 12. bxc3 {[%clk 0:02:43.6]} 12... cxd4 {[%clk
0:02:45.3]} 13. cxd4 {[%clk 0:02:44.5]} 13... O-O {[%clk 0:02:43.7]} 14. Qe2
{[%clk 0:02:25.4]} 14... e6 {[%clk 0:02:41.4]} 15. Ba3 {[%clk 0:02:16.9]} 15...
Ne8 {[%clk 0:02:33.2]} 16. f5 {[%clk 0:02:08.5]} 16... exf5 {[%clk 0:02:30.3]}
17. exf5 {[%clk 0:01:48]} 17... Bxf3 {[%clk 0:02:30.3]} 18. Qxf3 {[%clk
0:01:48.9]} 18... Bxd4+ {[%clk 0:02:27.6]} 19. Kh1 {[%clk 0:01:49.4]} 19... Bxa1
{[%clk 0:02:23.2]} 20. Rxa1 {[%clk 0:01:50.3]} 20... Ne5 {[%clk 0:02:22.2]} 21.
Qd1 {[%clk 0:01:42.9]} 21... Nxd3 {[%clk 0:02:18.9]} 22. Qxd3 {[%clk 0:01:42.8]}
22... Nf6 {[%clk 0:01:53.6]} 23. Bb2 {[%clk 0:01:37.6]} 23... Ng4 {[%clk
0:01:38.6]} 24. Qd4 {[%clk 0:01:30.3]} 24... Ne5 {[%clk 0:01:28.8]} 25. Re1
{[%clk 0:01:17]} 25... Rb8 {[%clk 0:01:25.1]} 26. Ne4 {[%clk 0:00:57.7]} 26...
f6 {[%clk 0:01:07.7]} 27. Nxd6 {[%clk 0:00:52]} 27... Rxb2 {[%clk 0:01:05.2]}
28. Qxb2 {[%clk 0:00:30.3]} 28... Qxd6 {[%clk 0:01:03.7]} 29. fxg6 {[%clk
0:00:31.2]} 29... hxg6 {[%clk 0:01:03.4]} 30. Qb3+ {[%clk 0:00:29.1]} 30... Kg7
{[%clk 0:01:02.3]} 31. Qb7+ {[%clk 0:00:28.5]} 31... Rf7 {[%clk 0:01:02.2]} 32.
Qb3 {[%clk 0:00:28.3]} 32... Rd7 {[%clk 0:00:55.5]} 33. h3 {[%clk 0:00:21.2]}
33... Qd5 {[%clk 0:00:51.7]} 34. Rb1 {[%clk 0:00:20.3]} 34... Qxb3 {[%clk
0:00:49.5]} 35. Rxb3 {[%clk 0:00:21.2]} 35... Rd4 {[%clk 0:00:45.5]} 36. a5
{[%clk 0:00:21.2]} 36... Ra4 {[%clk 0:00:45.5]} 37. Rb7+ {[%clk 0:00:21.6]}
37... Kh6 {[%clk 0:00:45.5]} 38. Ra7 {[%clk 0:00:22.5]} 38... Rxa5 {[%clk
0:00:45.5]} 39. Kh2 {[%clk 0:00:23.4]} 39... Ra2 {[%clk 0:00:45.2]} 40. Kg3
{[%clk 0:00:23.2]} 40... a5 {[%clk 0:00:44.7]} 41. Ra8 {[%clk 0:00:24.1]} 41...
a4 {[%clk 0:00:44.1]} 42. Ra6 {[%clk 0:00:22.5]} 42... Kg7 {[%clk 0:00:43.1]}
43. Ra7+ {[%clk 0:00:22.7]} 43... Nf7 {[%clk 0:00:43.6]} 44. Ra6 {[%clk
0:00:23.3]} 44... a3 {[%clk 0:00:43.9]} 45. Ra7 {[%clk 0:00:23.4]} 45... Ra1
{[%clk 0:00:44.3]} 46. Kh2 {[%clk 0:00:23]} 46... a2 {[%clk 0:00:44.7]} 47. Kg3
{[%clk 0:00:23.7]} 47... g5 {[%clk 0:00:43.3]} 48. Kf2 {[%clk 0:00:20.8]} 48...
Kg6 {[%clk 0:00:43.6]} 49. Kg3 {[%clk 0:00:19.1]} 49... Nd6 {[%clk 0:00:39.5]}
50. Kh2 {[%clk 0:00:17.8]} 50... Nb5 {[%clk 0:00:36.8]} 51. Ra6 {[%clk
0:00:17.7]} 51... Nc3 {[%clk 0:00:37.2]} 52. Ra3 {[%clk 0:00:16.6]} 52... Rc1
{[%clk 0:00:36.4]} 0-1

[Event "Late-Titled-Tuesday-Blitz-September-19-2023"]
[Site "Chess.com"]
[Date "2023.09.19"]
[Round "11"]
[White "BillieKimbah"]
[Black "ameetghasi100"]
[Result "1-0"]
[WhiteElo "2982"]
[BlackElo "2720"]
[TimeControl "180+1"]
[EndTime "16:05:26 PDT"]
[Termination "BillieKimbah won by checkmate"]

1. Nf3 {[%clk 0:02:55.7]} 1... Nf6 {[%clk 0:03:00]} 2. g3 {[%clk 0:02:54.1]}
2... g6 {[%clk 0:03:00.9]} 3. Bg2 {[%clk 0:02:53.9]} 3... Bg7 {[%clk 0:03:01.8]}
4. O-O {[%clk 0:02:54.1]} 4... O-O {[%clk 0:03:02.7]} 5. d4 {[%clk 0:02:54]}
5... d6 {[%clk 0:03:00.2]} 6. Re1 {[%clk 0:02:53.9]} 6... Nc6 {[%clk 0:02:50]}
7. d5 {[%clk 0:02:53.2]} 7... Nb4 {[%clk 0:02:50.1]} 8. e4 {[%clk 0:02:52.3]}
8... Bg4 {[%clk 0:02:46.2]} 9. h3 {[%clk 0:02:44]} 9... Bxf3 {[%clk 0:02:45.8]}
10. Bxf3 {[%clk 0:02:44.9]} 10... Nd7 {[%clk 0:02:40.4]} 11. Bg2 {[%clk
0:02:42.9]} 11... c6 {[%clk 0:02:37.5]} 12. c3 {[%clk 0:02:41.9]} 12... Na6
{[%clk 0:02:37.5]} 13. Nd2 {[%clk 0:02:40.5]} 13... Nac5 {[%clk 0:02:33.5]} 14.
Nb3 {[%clk 0:02:40.4]} 14... a5 {[%clk 0:02:24.1]} 15. Be3 {[%clk 0:02:34.7]}
15... Na4 {[%clk 0:01:56.2]} 16. Qc2 {[%clk 0:02:29.9]} 16... Nab6 {[%clk
0:01:41.1]} 17. Rad1 {[%clk 0:02:15.7]} 17... Qc7 {[%clk 0:01:33.9]} 18. Nd4
{[%clk 0:02:10]} 18... a4 {[%clk 0:01:29.5]} 19. a3 {[%clk 0:02:04.3]} 19... Nc4
{[%clk 0:01:26.1]} 20. Bg5 {[%clk 0:02:03.1]} 20... Nc5 {[%clk 0:01:22.3]} 21.
Qe2 {[%clk 0:01:42]} 21... Na5 {[%clk 0:01:05.4]} 22. h4 {[%clk 0:01:33.5]}
22... Nab3 {[%clk 0:01:01.6]} 23. Nc2 {[%clk 0:01:32.9]} 23... e6 {[%clk
0:00:49.3]} 24. dxe6 {[%clk 0:01:25.9]} 24... Nxe6 {[%clk 0:00:50.2]} 25. Be3
{[%clk 0:01:24.7]} 25... Rfe8 {[%clk 0:00:50.7]} 26. h5 {[%clk 0:01:23.9]} 26...
Ra5 {[%clk 0:00:48]} 27. h6 {[%clk 0:01:16.6]} 27... Bf8 {[%clk 0:00:41.7]} 28.
Nd4 {[%clk 0:01:12.2]} 28... Nexd4 {[%clk 0:00:34.2]} 29. cxd4 {[%clk
0:01:13.1]} 29... Rh5 {[%clk 0:00:34.5]} 30. Bf3 {[%clk 0:01:11.7]} 30... Rxh6
{[%clk 0:00:34.8]} 31. Kg2 {[%clk 0:01:08]} 31... Qa5 {[%clk 0:00:31.6]} 32.
Bxh6 {[%clk 0:01:02.3]} 32... Bxh6 {[%clk 0:00:31.7]} 33. e5 {[%clk 0:01:01.8]}
33... Bd2 {[%clk 0:00:15.7]} 34. Rh1 {[%clk 0:00:52.8]} 34... dxe5 {[%clk
0:00:15.3]} 35. dxe5 {[%clk 0:00:47.8]} 35... Rxe5 {[%clk 0:00:15]} 36. Qc4
{[%clk 0:00:44.3]} 36... Re7 {[%clk 0:00:08.8]} 37. Qh4 {[%clk 0:00:41.4]} 37...
f6 {[%clk 0:00:05]} 38. Qxf6 {[%clk 0:00:41.2]} 38... Rf7 {[%clk 0:00:05.6]} 39.
Qe6 {[%clk 0:00:36.7]} 39... Kg7 {[%clk 0:00:05.4]} 40. Rxh7+ {[%clk 0:00:35.7]}
40... Kxh7 {[%clk 0:00:05.8]} 41. Qxf7+ {[%clk 0:00:35.2]} 41... Kh6 {[%clk
0:00:06.7]} 42. Rh1+ {[%clk 0:00:33.7]} 42... Kg5 {[%clk 0:00:07.2]} 43. Rh4
{[%clk 0:00:29.8]} 43... Nd4 {[%clk 0:00:06.5]} 44. Rg4+ {[%clk 0:00:29.6]}
44... Kh6 {[%clk 0:00:06.3]} 45. Qxg6# {[%clk 0:00:29.8]} 1-0

[Event "Late-Titled-Tuesday-Blitz-September-19-2023"]
[Site "Chess.com"]
[Date "2023.09.19"]
[Round "11"]
[White "TheMagician"]
[Black "Nikachu"]
[Result "1-0"]
[WhiteElo "2242"]
[BlackElo "2181"]
[TimeControl "180+1"]
[EndTime "16:05:31 PDT"]
[Termination "TheMagician won on time"]

1. e4 {[%clk 0:03:00.9]} 1... c5 {[%clk 0:02:59.5]} 2. Nf3 {[%clk 0:03:00.4]}
2... d6 {[%clk 0:02:59.7]} 3. d4 {[%clk 0:03:00.8]} 3... cxd4 {[%clk 0:03:00.6]}
4. Nxd4 {[%clk 0:03:01]} 4... Nf6 {[%clk 0:03:00.8]} 5. Nc3 {[%clk 0:03:01.1]}
5... e6 {[%clk 0:03:01.3]} 6. Bg5 {[%clk 0:03:00.7]} 6... Be7 {[%clk 0:02:58.4]}
7. Qe2 {[%clk 0:02:59.1]} 7... a6 {[%clk 0:02:57]} 8. O-O-O {[%clk 0:02:58.9]}
8... Nbd7 {[%clk 0:02:56.1]} 9. f4 {[%clk 0:02:58.2]} 9... Qc7 {[%clk 0:02:56]}
10. Nf3 {[%clk 0:02:56.8]} 10... b5 {[%clk 0:02:49.7]} 11. e5 {[%clk 0:02:56.7]}
11... dxe5 {[%clk 0:02:43.5]} 12. fxe5 {[%clk 0:02:56.4]} 12... Nd5 {[%clk
0:02:32.5]} 13. Nxd5 {[%clk 0:02:56.3]} 13... Bxg5+ {[%clk 0:02:22.1]} 14. Nxg5
{[%clk 0:02:53.1]} 14... exd5 {[%clk 0:02:23]} 15. e6 {[%clk 0:02:49.6]} 15...
Qf4+ {[%clk 0:01:34.5]} 16. Kb1 {[%clk 0:02:41.3]} 16... Qxg5 {[%clk 0:01:33.9]}
17. exd7+ {[%clk 0:02:32.1]} 17... Kxd7 {[%clk 0:01:34.8]} 18. Qf3 {[%clk
0:02:26.3]} 18... Bb7 {[%clk 0:01:19]} 19. Qxf7+ {[%clk 0:02:24.8]} 19... Qe7
{[%clk 0:01:19.6]} 20. Qxe7+ {[%clk 0:01:55.9]} 20... Kxe7 {[%clk 0:01:20.5]}
21. Be2 {[%clk 0:01:55.8]} 21... Rad8 {[%clk 0:01:01.8]} 22. Bf3 {[%clk
0:01:48.4]} 22... Kd6 {[%clk 0:01:01.9]} 23. c3 {[%clk 0:01:41.8]} 23... Kc5
{[%clk 0:01:00.6]} 24. Rhe1 {[%clk 0:01:32.3]} 24... Rhe8 {[%clk 0:01:00.1]} 25.
b4+ {[%clk 0:01:18.9]} 25... Kd6 {[%clk 0:00:56.9]} 26. Kc2 {[%clk 0:01:09.5]}
26... a5 {[%clk 0:00:45.8]} 27. a3 {[%clk 0:01:04.5]} 27... axb4 {[%clk
0:00:43.8]} 28. axb4 {[%clk 0:01:04.6]} 28... Ra8 {[%clk 0:00:43.3]} 29. Rxe8
{[%clk 0:01:00.1]} 29... Rxe8 {[%clk 0:00:42.5]} 30. Ra1 {[%clk 0:00:58.8]}
30... Kc7 {[%clk 0:00:33.9]} 31. Kd3 {[%clk 0:00:57.9]} 31... Kb6 {[%clk
0:00:26.5]} 32. Kd4 {[%clk 0:00:44.7]} 32... Rc8 {[%clk 0:00:25.5]} 33. Be2
{[%clk 0:00:41.1]} 33... Re8 {[%clk 0:00:25.5]} 34. Bd3 {[%clk 0:00:40.6]} 34...
h6 {[%clk 0:00:24.6]} 35. Rf1 {[%clk 0:00:38.5]} 35... Re7 {[%clk 0:00:21.2]}
36. Rf8 {[%clk 0:00:36.8]} 36... Re1 {[%clk 0:00:17.3]} 37. Rf7 {[%clk
0:00:35.4]} 37... g5 {[%clk 0:00:15.7]} 38. Rf6+ {[%clk 0:00:35.1]} 38... Kc7
{[%clk 0:00:15.8]} 39. Rxh6 {[%clk 0:00:34.8]} 39... Rd1 {[%clk 0:00:15.1]} 40.
Rg6 {[%clk 0:00:28.8]} 40... g4 {[%clk 0:00:07]} 41. Rxg4 {[%clk 0:00:26.8]}
41... Bc8 {[%clk 0:00:07.6]} 42. Rg7+ {[%clk 0:00:24.9]} 42... Kd6 {[%clk
0:00:07.5]} 43. Ke3 {[%clk 0:00:22]} 1-0

[Event "Late-Titled-Tuesday-Blitz-September-19-2023"]
[Site "Chess.com"]
[Date "2023.09.19"]
[Round "11"]
[White "SantoBlue"]
[Black "Jarming"]
[Result "1/2-1/2"]
[WhiteElo "2941"]
[BlackElo "2741"]
[TimeControl "180+1"]
[EndTime "16:05:33 PDT"]
[Termination "Game drawn by repetition"]

1. e4 {[%clk 0:02:59.8]} 1... c5 {[%clk 0:03:00.2]} 2. Nc3 {[%clk 0:02:59.5]}
2... Nc6 {[%clk 0:03:00]} 3. Bb5 {[%clk 0:02:59.7]} 3... Nd4 {[%clk 0:02:59.6]}
4. a4 {[%clk 0:03:00.4]} 4... g6 {[%clk 0:02:56.9]} 5. d3 {[%clk 0:02:58.7]}
5... Bg7 {[%clk 0:02:57.1]} 6. h4 {[%clk 0:02:59]} 6... h6 {[%clk 0:02:56.9]} 7.
h5 {[%clk 0:02:58.5]} 7... g5 {[%clk 0:02:57.3]} 8. f4 {[%clk 0:02:59.2]} 8...
gxf4 {[%clk 0:02:57.6]} 9. Bxf4 {[%clk 0:02:59.4]} 9... a6 {[%clk 0:02:47.8]}
10. Bc4 {[%clk 0:02:59.2]} 10... d6 {[%clk 0:02:48.3]} 11. Nf3 {[%clk
0:02:58.7]} 11... Bg4 {[%clk 0:02:44.1]} 12. Rh4 {[%clk 0:02:53.1]} 12... Bxf3
{[%clk 0:02:38.4]} 13. gxf3 {[%clk 0:02:53.2]} 13... e6 {[%clk 0:02:24]} 14. Bg3
{[%clk 0:02:48.5]} 14... Ne7 {[%clk 0:02:14.7]} 15. Rg4 {[%clk 0:02:42.9]} 15...
Bf6 {[%clk 0:02:08.2]} 16. Ne2 {[%clk 0:02:37.6]} 16... Nxf3+ {[%clk 0:02:05.6]}
17. Kf2 {[%clk 0:02:36.2]} 17... Ne5 {[%clk 0:02:05.9]} 18. Bxe5 {[%clk
0:02:33]} 18... Bxe5 {[%clk 0:02:06.8]} 19. c3 {[%clk 0:02:32.2]} 19... d5
{[%clk 0:02:05.3]} 20. Ba2 {[%clk 0:02:30.1]} 20... d4 {[%clk 0:02:02.4]} 21.
Qb3 {[%clk 0:02:27.6]} 21... Qd7 {[%clk 0:01:56.1]} 22. cxd4 {[%clk 0:02:27.1]}
22... Bxd4+ {[%clk 0:01:54.9]} 23. Ke1 {[%clk 0:02:21]} 23... Nc6 {[%clk
0:01:51.9]} 24. Rc1 {[%clk 0:02:13.2]} 24... O-O-O {[%clk 0:01:45.3]} 25. Kd1
{[%clk 0:02:08.1]} 25... Kb8 {[%clk 0:01:38.6]} 26. Kc2 {[%clk 0:02:08.1]} 26...
Be3 {[%clk 0:01:37.1]} 27. Rd1 {[%clk 0:02:07.3]} 27... Rhg8 {[%clk 0:01:22]}
28. Rxg8 {[%clk 0:02:05.6]} 28... Rxg8 {[%clk 0:01:22.9]} 29. Kb1 {[%clk
0:02:06.2]} 29... Rg2 {[%clk 0:01:22.3]} 30. Nc3 {[%clk 0:02:04]} 30... Nb4
{[%clk 0:01:15.3]} 31. Qc4 {[%clk 0:02:00.3]} 31... Bd4 {[%clk 0:01:15.3]} 32.
Bb3 {[%clk 0:01:58.7]} 32... Qc7 {[%clk 0:01:12.5]} 33. Rh1 {[%clk 0:01:22]}
33... Qf4 {[%clk 0:01:04.3]} 34. Nd1 {[%clk 0:01:22.2]} 34... Qd2 {[%clk
0:00:50.9]} 35. Rf1 {[%clk 0:01:22.7]} 35... Qxd3+ {[%clk 0:00:22.1]} 36. Qxd3
{[%clk 0:01:22.8]} 36... Nxd3 {[%clk 0:00:23]} 37. Rxf7 {[%clk 0:01:21.9]} 37...
Nxb2 {[%clk 0:00:20.6]} 38. a5 {[%clk 0:01:15.6]} 38... c4 {[%clk 0:00:19.1]}
39. Bc2 {[%clk 0:01:14.3]} 39... Nxd1 {[%clk 0:00:18.1]} 40. Bxd1 {[%clk
0:01:15.2]} 40... c3 {[%clk 0:00:18.1]} 41. Kc1 {[%clk 0:01:15.8]} 41... e5
{[%clk 0:00:18.1]} 42. Rf3 {[%clk 0:01:06.6]} 42... Ra2 {[%clk 0:00:15.5]} 43.
Bb3 {[%clk 0:01:06.5]} 43... Rxa5 {[%clk 0:00:15.4]} 44. Bd5 {[%clk 0:01:06.9]}
44... Ra1+ {[%clk 0:00:13.6]} 45. Kc2 {[%clk 0:01:06.8]} 45... Rh1 {[%clk
0:00:13.1]} 46. Rf7 {[%clk 0:01:06.6]} 46... Rh2+ {[%clk 0:00:12.7]} 47. Kb3
{[%clk 0:00:51.1]} 47... Rb2+ {[%clk 0:00:12.5]} 48. Ka3 {[%clk 0:00:51]} 48...
c2 {[%clk 0:00:12.7]} 49. Rf8+ {[%clk 0:00:50.6]} 49... Ka7 {[%clk 0:00:12.2]}
50. Rc8 {[%clk 0:00:51.1]} 50... b5 {[%clk 0:00:11]} 51. Bb7 {[%clk 0:00:41]}
51... Kxb7 {[%clk 0:00:10.4]} 52. Rc7+ {[%clk 0:00:39.7]} 52... Kb6 {[%clk
0:00:09.5]} 53. Rc6+ {[%clk 0:00:40.3]} 53... Kb7 {[%clk 0:00:08.5]} 54. Rc7+
{[%clk 0:00:40.7]} 54... Ka8 {[%clk 0:00:09]} 55. Rc8+ {[%clk 0:00:40.5]} 55...
Kb7 {[%clk 0:00:08.6]} 56. Rc7+ {[%clk 0:00:41.1]} 1/2-1/2

[Event "Late-Titled-Tuesday-Blitz-September-19-2023"]
[Site "Chess.com"]
[Date "2023.09.19"]
[Round "11"]
[White "lamomiajunior"]
[Black "Djager97"]
[Result "1-0"]
[WhiteElo "2651"]
[BlackElo "2550"]
[TimeControl "180+1"]
[EndTime "16:05:43 PDT"]
[Termination "lamomiajunior won by resignation"]

1. d4 {[%clk 0:03:00.9]} 1... Nf6 {[%clk 0:02:58.6]} 2. c4 {[%clk 0:03:00.5]}
2... c5 {[%clk 0:02:59.3]} 3. d5 {[%clk 0:03:00.5]} 3... d6 {[%clk 0:03:00]} 4.
Nc3 {[%clk 0:02:59.6]} 4... g6 {[%clk 0:03:00.6]} 5. e4 {[%clk 0:03:00.2]} 5...
Bg7 {[%clk 0:03:01.1]} 6. Nf3 {[%clk 0:03:01]} 6... O-O {[%clk 0:03:01.7]} 7. h3
{[%clk 0:03:01.7]} 7... e6 {[%clk 0:03:02.2]} 8. Bd3 {[%clk 0:03:02.4]} 8...
exd5 {[%clk 0:03:02.8]} 9. exd5 {[%clk 0:03:03.2]} 9... Re8+ {[%clk 0:03:03.6]}
10. Be3 {[%clk 0:03:03.8]} 10... Rxe3+ {[%clk 0:03:04.2]} 11. fxe3 {[%clk
0:03:04.7]} 11... Qe7 {[%clk 0:03:04.9]} 12. O-O {[%clk 0:03:04.6]} 12... Nbd7
{[%clk 0:03:05.5]} 13. Qd2 {[%clk 0:03:01.8]} 13... Nh5 {[%clk 0:03:05.5]} 14.
Rae1 {[%clk 0:03:00]} 14... Ng3 {[%clk 0:03:00.3]} 15. Rf2 {[%clk 0:03:00.2]}
15... Ne5 {[%clk 0:03:00.4]} 16. Nxe5 {[%clk 0:02:54.3]} 16... Bxe5 {[%clk
0:03:01.3]} 17. Rf3 {[%clk 0:02:48.1]} 17... g5 {[%clk 0:02:44]} 18. Qf2 {[%clk
0:02:43.6]} 18... Nh5 {[%clk 0:02:35.2]} 19. Rf1 {[%clk 0:02:43]} 19... f6
{[%clk 0:02:33.8]} 20. g4 {[%clk 0:02:02.4]} 20... Ng7 {[%clk 0:02:28.5]} 21.
Ne4 {[%clk 0:02:02.7]} 21... Ne8 {[%clk 0:02:12.1]} 22. Nxg5 {[%clk 0:02:01.6]}
22... h6 {[%clk 0:02:00.3]} 23. Ne4 {[%clk 0:01:58.5]} 23... Bd7 {[%clk
0:01:59.8]} 24. Ng3 {[%clk 0:01:58.1]} 24... Ng7 {[%clk 0:01:58.7]} 25. Nf5
{[%clk 0:01:50.1]} 25... Nxf5 {[%clk 0:01:47.6]} 26. Bxf5 {[%clk 0:01:51]} 26...
Be8 {[%clk 0:01:45.3]} 27. Be6+ {[%clk 0:01:33.1]} 27... Kg7 {[%clk 0:01:45.2]}
28. Qg2 {[%clk 0:01:25]} 28... b5 {[%clk 0:01:42.7]} 29. h4 {[%clk 0:01:17.5]}
29... Bg6 {[%clk 0:01:14.2]} 30. g5 {[%clk 0:00:51.8]} 30... hxg5 {[%clk
0:01:08.1]} 31. hxg5 {[%clk 0:00:51.9]} 31... fxg5 {[%clk 0:01:09]} 32. Bf5
{[%clk 0:00:30.1]} 32... Bh5 {[%clk 0:00:55]} 33. Rh3 {[%clk 0:00:27.5]} 33...
Rh8 {[%clk 0:00:55.6]} 34. Bg4 {[%clk 0:00:26.1]} 34... Bg6 {[%clk 0:00:49.2]}
35. Rxh8 {[%clk 0:00:25.6]} 35... Kxh8 {[%clk 0:00:50.1]} 36. Bf5 {[%clk
0:00:25.3]} 36... Bf7 {[%clk 0:00:26.7]} 37. Qh3+ {[%clk 0:00:22.1]} 37... Kg7
{[%clk 0:00:26.5]} 38. Qh7+ {[%clk 0:00:21.8]} 38... Kf8 {[%clk 0:00:27.1]} 39.
Be6 {[%clk 0:00:20.9]} 39... Bf6 {[%clk 0:00:24.2]} 40. Qxf7+ {[%clk 0:00:17.5]}
40... Qxf7 {[%clk 0:00:23.4]} 41. Bxf7 {[%clk 0:00:18.4]} 41... Kxf7 {[%clk
0:00:24.2]} 42. cxb5 {[%clk 0:00:19.3]} 42... Kg6 {[%clk 0:00:24.1]} 43. b3
{[%clk 0:00:19.5]} 43... g4 {[%clk 0:00:14.4]} 44. Kg2 {[%clk 0:00:19.3]} 44...
Bg5 {[%clk 0:00:11.7]} 45. e4 {[%clk 0:00:18.3]} 45... Bf6 {[%clk 0:00:06.3]}
46. Kg3 {[%clk 0:00:17.8]} 46... Kg5 {[%clk 0:00:04.8]} 47. Rf5+ {[%clk
0:00:17.8]} 47... Kg6 {[%clk 0:00:05.7]} 48. Kxg4 {[%clk 0:00:18.7]} 1-0